[Event "European Rapid Championship 2021"]
[Site "Katowice"]
[Date "2021.12.18"]
[Round "1.24"]
[White "Wieckowski, Michal"]
[Black "Tymrakiewicz, Rafal"]
[Result "1-0"]
[ECO "B02"]
[WhiteElo "1698"]
[BlackElo "2250"]
[Annotator "RC"]
[PlyCount "177"]
[EventDate "2021.12.18"]
[EventType "swiss"]
[EventCountry "POL"]
[SourceTitle "playchess.com"]
[Source "ChessBase"]
[SourceQuality "1"]
[TimeControl "900+10"]

1. e4 {[%emt 0:00:01]} Nf6 {[%emt 0:00:16]} 2. Nc3 {[%emt 0:00:30]} d5 {
[%emt 0:00:07]} 3. exd5 {[%emt 0:00:45]} Nxd5 {[%emt 0:00:06]} 4. Bc4 {[%emt 0:
00:08]} e6 {[%emt 0:00:03]} 5. Nf3 {[%emt 0:00:18]} c5 {[%emt 0:00:55]} 6. O-O
{[%emt 0:00:34]} Nxc3 {[%emt 0:00:56]} 7. dxc3 {[%emt 0:00:05]} Bd6 {[%emt 0:
05:20]} 8. Ng5 {[%emt 0:03:17]} h6 {[%emt 0:01:04]} 9. Qh5 {[%emt 0:00:11]} O-O
{[%emt 0:03:55]} 10. Ne4 {[%emt 0:00:41]} Be7 {[%emt 0:00:37]} 11. Be3 {
[%emt 0:05:08]} Nd7 {[%emt 0:00:37]} 12. Rad1 {[%emt 0:00:28]} Qe8 {[%emt 0:00:
03]} 13. Bb5 {[%emt 0:02:25]} a6 {[%emt 0:00:18]} 14. Bxd7 {[%emt 0:00:38]}
Bxd7 {[%emt 0:00:01]} 15. Bxc5 {[%emt 0:00:23]} Bxc5 {[%emt 0:00:23]} 16. Qxc5
{[%emt 0:00:06]} Bc6 {[%emt 0:00:09]} 17. Nd6 {[%emt 0:00:47]} Qe7 {[%emt 0:00:
04]} 18. Ne4 {[%emt 0:00:14]} Qh4 {[%emt 0:00:18]} 19. Ng3 {[%emt 0:00:05]}
Rac8 {[%emt 0:00:24]} 20. Qd4 {[%emt 0:00:02]} Qg5 {[%emt 0:00:13]} 21. Qd2 {
[%emt 0:00:03]} Qg6 {[%emt 0:00:28]} 22. Qd3 {[%emt 0:00:17]} f5 {[%emt 0:00:
00]} 23. Rfe1 {[%emt 0:00:05]} Rf6 {[%emt 0:00:44]} 24. f3 {[%emt 0:00:09]} Re8
{[%emt 0:00:26]} 25. Re5 {[%emt 0:00:01]} Qg5 {[%emt 0:00:46]} 26. Qd2 {
[%emt 0:00:13]} Qh4 {[%emt 0:00:35]} 27. Ne2 {[%emt 0:01:24]} g5 {[%emt 0:00:
26]} 28. Nd4 {[%emt 0:00:14]} Bd7 {[%emt 0:00:00]} 29. g3 {[%emt 0:00:10]} Qh5
{[%emt 0:00:02]} 30. Rde1 {[%emt 0:00:08]} Qf7 {[%emt 0:00:04]} 31. Kg2 {
[%emt 0:00:05]} Kg7 {[%emt 0:00:04]} 32. Qd3 {[%emt 0:00:14]} g4 {[%emt 0:00:
21]} 33. f4 h5 34. Kg1 {[%emt 0:00:35]} h4 {[%emt 0:00:02]} 35. Kf2 {[%emt 0:
00:06]} Rh6 {[%emt 0:00:11]} 36. Ke3 {[%emt 0:00:08]} hxg3 {[%emt 0:00:27]} 37.
hxg3 {[%emt 0:00:01]} Rh3 {[%emt 0:00:03]} 38. Kd2 {[%emt 0:00:03]} Rhh8 {
[%emt 0:00:16]} 39. Kc1 {[%emt 0:00:05]} Rh6 {[%emt 0:00:23]} 40. Kb1 {[%emt 0:
00:34]} Rf6 {[%emt 0:00:02]} 41. Kc1 {[%emt 0:00:01]} Rc8 {[%emt 0:00:10]} 42.
Rh1 {[%emt 0:00:12]} Bc6 {[%emt 0:00:27]} 43. Nxc6 {[%emt 0:00:12]} Rxc6 {
[%emt 0:00:01]} 44. Qd2 {[%emt 0:00:05]} Rh6 {[%emt 0:00:16]} 45. Rxh6 {
[%emt 0:00:01]} Kxh6 {[%emt 0:00:00]} 46. Qh2+ {[%emt 0:00:02]} Kg7 {[%emt 0:
00:01]} 47. Qh4 {[%emt 0:00:07]} Qf6 {[%emt 0:00:08]} 48. Qxf6+ {[%emt 0:00:12]
} Kxf6 {[%emt 0:00:01]} 49. Kd2 {[%emt 0:00:06]} Rc7 {[%emt 0:00:07]} 50. Re2 {
[%emt 0:00:03]} Rh7 {[%emt 0:00:02]} 51. Ke3 {[%emt 0:00:05]} Rh1 {[%emt 0:00:
15]} 52. Kd2 {[%emt 0:00:35]} Rg1 {[%emt 0:00:34]} 53. Re3 {[%emt 0:00:01]} Ke7
{[%emt 0:00:01]} 54. c4 {[%emt 0:00:12]} b6 {[%emt 0:00:33]} 55. b4 {[%emt 0:
00:02]} a5 {[%emt 0:00:16]} 56. a3 {[%emt 0:00:12]} Kd6 {[%emt 0:00:10]} 57.
Rd3+ {[%emt 0:00:27]} Kc6 {[%emt 0:00:02]} 58. Re3 {[%emt 0:00:01]} Kd6 {
[%emt 0:00:10]} 59. Rd3+ {[%emt 0:00:02]} Ke7 {[%emt 0:00:17]} 60. Re3 {
[%emt 0:00:01]} axb4 {[%emt 0:00:04]} 61. axb4 Rg2+ {[%emt 0:00:04]} 62. Kd3 {
[%emt 0:00:04]} Kd6 {[%emt 0:00:02]} 63. Kc3 {[%emt 0:00:20]} Rg1 {[%emt 0:00:
01]} 64. Rd3+ {[%emt 0:00:01]} Ke7 {[%emt 0:00:01]} 65. Re3 {[%emt 0:00:01]}
Kf6 {[%emt 0:00:00]} 66. c5 {[%emt 0:00:25]} bxc5 {[%emt 0:00:01]} 67. bxc5 {
[%emt 0:00:01]} Ke7 {[%emt 0:00:07]} 68. Kc4 {[%emt 0:00:11]} Rg2 {[%emt 0:00:
06]} 69. c3 {[%emt 0:00:01]} Kd7 {[%emt 0:01:07]} 70. Kd4 {[%emt 0:00:46]} Rd2+
{[%emt 0:00:09]} 71. Rd3 {[%emt 0:00:13]} Rg2 {[%emt 0:00:21]} 72. Ke5+ {
[%emt 0:00:17]} Ke7 {[%emt 0:00:00]} 73. Kd4 {[%emt 0:00:26]} Re2 {[%emt 0:00:
16]} 74. Re3 {[%emt 0:00:07]} Rd2+ {[%emt 0:00:06]} 75. Rd3 {[%emt 0:00:02]}
Re2 {[%emt 0:00:04]} 76. Re3 {[%emt 0:00:02]} Rd2+ {[%emt 0:00:06]} 77. Rd3 {
[%emt 0:00:03]} Ra2 {[%emt 0:00:13]} 78. Kc4 {[%emt 0:00:15]} Ra8 {[%emt 0:00:
27]} 79. c6 {[%emt 0:00:05]} e5 {[%emt 0:00:12]} 80. fxe5 Ke6 81. Kc5 {[%emt 0:
00:17]} Ra5+ {[%emt 0:00:22]} 82. Kb6 {[%emt 0:00:04]} Ra4 {[%emt 0:00:02]} 83.
Rd4 {[%emt 0:00:07]} Ra3 {[%emt 0:00:06]} 84. c4 {[%emt 0:00:47]} Rb3+ {
[%emt 0:00:05]} 85. Kc5 {[%emt 0:00:02]} Rb8 {[%emt 0:00:07]} 86. c7 {[%emt 0:
00:06]} Rc8 {[%emt 0:00:01]} 87. Kc6 {[%emt 0:00:01]} Kxe5 {[%emt 0:00:00]} 88.
Rf4 {[%emt 0:00:06]} Ke6 {[%emt 0:00:09]} 89. Kb7 {[%emt 0:00:02]} 1-0

[Event "European Rapid Championship 2021"]
[Site "Katowice"]
[Date "2021.12.18"]
[Round "1.26"]
[White "Czuprynski, Janusz"]
[Black "Wisniewski, Michal"]
[Result "0-1"]
[ECO "A45"]
[WhiteElo "1536"]
[BlackElo "2248"]
[Annotator "NA RC"]
[PlyCount "58"]
[EventDate "2021.12.18"]
[EventType "swiss"]
[EventCountry "POL"]
[SourceTitle "playchess.com"]
[Source "ChessBase"]
[SourceQuality "1"]
[TimeControl "900+10"]

1. d4 {[%emt 0:00:07]} Nf6 {[%emt 0:00:03]} 2. Bf4 {[%emt 0:00:05]} c5 {
[%emt 0:00:01]} 3. e3 {[%emt 0:00:09]} Qb6 {[%emt 0:00:01]} 4. Nc3 {[%emt 0:04:
31]} cxd4 {[%emt 0:00:03]} 5. Nb5 {[%emt 0:01:21]} Qa5+ {[%emt 0:00:11]} 6. c3
{[%emt 0:00:28]} dxc3 {[%emt 0:00:49]} 7. Bc7 {[%emt 0:03:14]} Qb4 {[%emt 0:00:
06]} 8. bxc3 {[%emt 0:00:07]} Qc5 {[%emt 0:00:11]} 9. Qd4 {[%emt 0:01:10]} Na6
{[%emt 0:00:12]} 10. Qxc5 {[%emt 0:01:10]} Nxc5 {[%emt 0:00:02]} 11. Bg3 {
[%emt 0:00:19]} Ne6 {[%emt 0:00:01]} 12. Nf3 {[%emt 0:00:09]} a6 {[%emt 0:00:
02]} 13. Nc7+ {[%emt 0:00:41]} Nxc7 {[%emt 0:00:01]} 14. Bxc7 {[%emt 0:00:02]}
d6 {[%emt 0:00:03]} 15. c4 {[%emt 0:00:58]} g6 {[%emt 0:00:19]} 16. Bd3 {
[%emt 0:00:14]} Bg7 {[%emt 0:00:02]} 17. Rc1 {[%emt 0:00:34]} Nd7 {[%emt 0:00:
06]} 18. O-O {[%emt 0:00:18]} O-O {[%emt 0:00:02]} 19. Rc2 {[%emt 0:00:38]} Nc5
{[%emt 0:00:03]} 20. Be2 {[%emt 0:00:02]} Bf5 {[%emt 0:00:03]} 21. Rcc1 {
[%emt 0:00:15]} Rac8 {[%emt 0:00:02]} 22. Ba5 {[%emt 0:00:06]} Bd3 {[%emt 0:00:
42]} 23. Bxd3 {[%emt 0:00:23]} Nxd3 {[%emt 0:00:03]} 24. Rc2 {[%emt 0:00:03]}
Rc5 {[%emt 0:00:06]} 25. Rd1 {[%emt 0:00:30]} Nxf2 {[%emt 0:00:05]} 26. Kxf2 {
[%emt 0:00:03]} Rxa5 {[%emt 0:00:02]} 27. Rd5 {[%emt 0:00:12]} Ra4 {[%emt 0:00:
23]} 28. Ne1 {[%emt 0:00:22]} Rc8 {[%emt 0:00:05]} 29. c5 {[%emt 0:00:04]} dxc5
{[%emt 0:00:05]} 0-1

[Event "European Rapid Championship 2021"]
[Site "Katowice"]
[Date "2021.12.18"]
[Round "1.27"]
[White "Zakrzewski, Marek"]
[Black "Zalega, Maciej"]
[Result "1-0"]
[ECO "A16"]
[WhiteElo "2239"]
[BlackElo "1985"]
[Annotator "RC"]
[PlyCount "89"]
[EventDate "2021.12.18"]
[EventType "swiss"]
[EventCountry "POL"]
[SourceTitle "playchess.com"]
[Source "ChessBase"]
[SourceQuality "1"]
[TimeControl "900+10"]

1. c4 {[%emt 0:00:35]} Nf6 {[%emt 0:00:01]} 2. Nc3 {[%emt 0:00:03]} g6 {
[%emt 0:00:01]} 3. g3 {[%emt 0:00:31]} Bg7 {[%emt 0:00:04]} 4. Bg2 {[%emt 0:00:
02]} d6 {[%emt 0:00:02]} 5. Nf3 {[%emt 0:00:02]} O-O {[%emt 0:00:03]} 6. O-O {
[%emt 0:00:03]} Nc6 {[%emt 0:00:02]} 7. Rb1 {[%emt 0:00:07]} a5 {[%emt 0:00:21]
} 8. a3 {[%emt 0:00:02]} e5 {[%emt 0:00:16]} 9. d3 {[%emt 0:00:03]} Re8 {
[%emt 0:00:04]} 10. b4 {[%emt 0:00:04]} axb4 {[%emt 0:00:41]} 11. axb4 {
[%emt 0:00:02]} e4 {[%emt 0:00:02]} 12. dxe4 {[%emt 0:01:07]} Nxe4 {[%emt 0:00:
08]} 13. Nd5 {[%emt 0:05:09]} Be6 {[%emt 0:03:32]} 14. Bb2 {[%emt 0:00:57]}
Bxb2 {[%emt 0:00:04]} 15. Rxb2 {[%emt 0:00:03]} Bxd5 {[%emt 0:00:02]} 16. cxd5
{[%emt 0:00:21]} Qf6 {[%emt 0:02:07]} 17. Rb3 {[%emt 0:01:30]} Ne5 {[%emt 0:01:
34]} 18. Qc2 {[%emt 0:00:09]} Ng4 {[%emt 0:02:42]} 19. h3 {[%emt 0:01:20]}
Ngxf2 {[%emt 0:00:48]} 20. Rxf2 {[%emt 0:00:02]} Nxf2 {[%emt 0:00:01]} 21. Kxf2
{[%emt 0:00:03]} Re7 {[%emt 0:00:18]} 22. Qb2 {[%emt 0:02:10]} Qf5 {[%emt 0:00:
40]} 23. Rd3 {[%emt 0:00:02]} Rae8 {[%emt 0:00:17]} 24. Bf1 {[%emt 0:00:02]}
Re5 {[%emt 0:00:43]} 25. Qd2 {[%emt 0:00:48]} h5 {[%emt 0:00:56]} 26. Kg2 {
[%emt 0:01:01]} Re4 {[%emt 0:00:03]} 27. b5 {[%emt 0:00:10]} Kg7 {[%emt 0:00:
55]} 28. Qc3+ {[%emt 0:00:10]} Kg8 {[%emt 0:00:08]} 29. Kf2 {[%emt 0:00:29]} h4
{[%emt 0:00:24]} 30. gxh4 {[%emt 0:00:33]} R8e7 {[%emt 0:02:04]} 31. Kg2 {
[%emt 0:01:41]} Re8 {[%emt 0:00:45]} 32. Qd2 {[%emt 0:00:08]} Kg7 {[%emt 0:00:
12]} 33. Rc3 {[%emt 0:00:29]} R8e7 {[%emt 0:00:11]} 34. Qg5 {[%emt 0:00:02]}
Rxe2+ {[%emt 0:00:23]} 35. Bxe2 {[%emt 0:00:02]} Rxe2+ {[%emt 0:00:01]} 36. Kg3
{[%emt 0:00:01]} Qb1 {[%emt 0:00:18]} 37. Qc1 {[%emt 0:00:34]} Qxb5 {[%emt 0:
00:13]} 38. Nd4 {[%emt 0:00:22]} Rg2+ {[%emt 0:00:10]} 39. Kxg2 {[%emt 0:00:04]
} Qxd5+ {[%emt 0:00:01]} 40. Nf3 {[%emt 0:00:03]} c5 {[%emt 0:00:03]} 41. Qd2 {
[%emt 0:00:09]} Qe6 {[%emt 0:00:06]} 42. Rd3 {[%emt 0:00:02]} c4 {[%emt 0:00:
04]} 43. Rxd6 {[%emt 0:00:03]} Qf5 {[%emt 0:00:03]} 44. Qc3+ {[%emt 0:00:05]}
Kh7 {[%emt 0:00:01]} 45. Qxc4 1-0

[Event "European Rapid Championship 2021"]
[Site "Katowice"]
[Date "2021.12.18"]
[Round "2.1"]
[White "Teclaf, Pawel"]
[Black "Galuszka, Tomasz"]
[Result "1-0"]
[ECO "A00"]
[WhiteElo "2345"]
[BlackElo "1886"]
[Annotator "NA"]
[PlyCount "61"]
[EventDate "2021.12.18"]
[EventType "swiss"]
[EventCountry "POL"]
[SourceTitle "playchess.com"]
[Source "ChessBase"]
[SourceQuality "1"]
[TimeControl "900+10"]

1. b4 {[%emt 0:00:02]} c6 {[%emt 0:00:09]} 2. Bb2 {[%emt 0:00:02]} Qb6 {
[%emt 0:00:01]} 3. a3 {[%emt 0:00:01]} a5 {[%emt 0:00:03]} 4. c4 {[%emt 0:00:
01]} d6 {[%emt 0:01:17]} 5. Nc3 {[%emt 0:02:48]} axb4 {[%emt 0:00:25]} 6. Na4 {
[%emt 0:00:59]} Qc7 {[%emt 0:00:09]} 7. axb4 {[%emt 0:00:02]} Nf6 {[%emt 0:00:
32]} 8. Nf3 {[%emt 0:00:06]} g6 {[%emt 0:00:18]} 9. g3 {[%emt 0:01:05]} Bg7 {
[%emt 0:00:02]} 10. Bg2 {[%emt 0:00:01]} O-O {[%emt 0:00:03]} 11. O-O {[%emt 0:
00:02]} Bg4 {[%emt 0:01:35]} 12. Qb3 {[%emt 0:00:21]} Nbd7 {[%emt 0:01:11]} 13.
h3 {[%emt 0:00:21]} Bxf3 {[%emt 0:00:05]} 14. Bxf3 {[%emt 0:00:04]} e5 {
[%emt 0:00:23]} 15. d3 {[%emt 0:00:25]} h5 {[%emt 0:00:51]} 16. Nc3 {[%emt 0:
00:21]} h4 {[%emt 0:00:19]} 17. gxh4 {[%emt 0:00:02]} Rfb8 {[%emt 0:01:12]} 18.
Kh1 {[%emt 0:00:36]} Qd8 {[%emt 0:00:01]} 19. Rg1 {[%emt 0:00:55]} Nh7 {
[%emt 0:00:26]} 20. h5 {[%emt 0:01:32]} Qh4 {[%emt 0:00:39]} 21. Rg3 {[%emt 0:
00:02]} Rxa1+ {[%emt 0:00:02]} 22. Bxa1 {[%emt 0:00:02]} Ng5 {[%emt 0:01:33]}
23. hxg6 {[%emt 0:01:01]} f5 {[%emt 0:01:14]} 24. c5+ {[%emt 0:00:44]} d5 {
[%emt 0:00:04]} 25. Nxd5 {[%emt 0:00:20]} cxd5 {[%emt 0:00:12]} 26. Qxd5+ {
[%emt 0:00:05]} Kh8 {[%emt 0:00:02]} 27. Qxd7 {[%emt 0:00:26]} Rf8 {[%emt 0:02:
22]} 28. Rxg5 {[%emt 0:03:59]} Qxg5 {[%emt 0:00:04]} 29. Bxe5 {[%emt 0:00:02]}
Qc1+ {[%emt 0:00:06]} 30. Kg2 {[%emt 0:00:01]} Qg5+ {[%emt 0:00:02]} 31. Bg4 {
[%emt 0:00:01]} 1-0

[Event "European Rapid Championship 2021"]
[Site "Katowice"]
[Date "2021.12.18"]
[Round "2.2"]
[White "Baum, Jonasz"]
[Black "Widelski, Kacper"]
[Result "1-0"]
[ECO "A52"]
[WhiteElo "2343"]
[BlackElo "1884"]
[Annotator "NA"]
[PlyCount "69"]
[EventDate "2021.12.18"]
[EventType "swiss"]
[EventCountry "POL"]
[SourceTitle "playchess.com"]
[Source "ChessBase"]
[SourceQuality "1"]
[TimeControl "900+10"]

1. d4 {[%emt 0:00:01]} Nf6 {[%emt 0:00:03]} 2. c4 {[%emt 0:00:01]} e5 {[%emt 0:
00:25]} 3. dxe5 {[%emt 0:00:03]} Ng4 {[%emt 0:00:01]} 4. e3 {[%emt 0:00:01]}
Nxe5 {[%emt 0:00:09]} 5. f4 {[%emt 0:00:01]} Nec6 {[%emt 0:01:19]} 6. Nc3 {
[%emt 0:00:04]} Bb4 {[%emt 0:00:25]} 7. Bd2 {[%emt 0:00:42]} O-O {[%emt 0:00:
36]} 8. Nf3 {[%emt 0:00:26]} d6 {[%emt 0:00:27]} 9. Bd3 {[%emt 0:00:13]} Nd7 {
[%emt 0:00:33]} 10. O-O {[%emt 0:03:39]} f5 {[%emt 0:01:56]} 11. Nd5 {[%emt 0:
02:33]} Bxd2 {[%emt 0:00:31]} 12. Qxd2 {[%emt 0:00:01]} Nc5 {[%emt 0:00:46]}
13. Bc2 {[%emt 0:00:29]} a5 {[%emt 0:02:11]} 14. a3 {[%emt 0:00:53]} a4 {
[%emt 0:00:26]} 15. Rad1 {[%emt 0:00:21]} Ne7 {[%emt 0:01:08]} 16. Nc3 {
[%emt 0:01:03]} Be6 {[%emt 0:00:24]} 17. Qe2 {[%emt 0:00:03]} Kh8 {[%emt 0:01:
42]} 18. Nd4 {[%emt 0:02:04]} Bd7 {[%emt 0:01:23]} 19. Ndb5 {[%emt 0:01:53]}
Ng8 {[%emt 0:00:54]} 20. Nd4 {[%emt 0:00:51]} g6 {[%emt 0:00:34]} 21. e4 {
[%emt 0:00:22]} Nh6 {[%emt 0:01:14]} 22. e5 {[%emt 0:00:07]} Re8 {[%emt 0:01:
00]} 23. Rfe1 {[%emt 0:00:08]} dxe5 {[%emt 0:00:18]} 24. fxe5 {[%emt 0:00:03]}
Qg5 {[%emt 0:00:23]} 25. Nf3 {[%emt 0:00:37]} Qh5 {[%emt 0:00:13]} 26. Nd5 {
[%emt 0:00:05]} Bc6 {[%emt 0:00:13]} 27. Nxc7 {[%emt 0:00:45]} Rac8 {[%emt 0:
00:00]} 28. Nxe8 {[%emt 0:00:04]} Rxe8 {[%emt 0:00:01]} 29. Qf2 {[%emt 0:01:29]
} Ne4 {[%emt 0:00:02]} 30. Qh4 {[%emt 0:00:06]} Qxh4 {[%emt 0:00:21]} 31. Nxh4
{[%emt 0:00:01]} Rxe5 {[%emt 0:00:02]} 32. Nf3 {[%emt 0:00:23]} Rc5 {[%emt 0:
00:16]} 33. Rd8+ {[%emt 0:00:10]} Kg7 {[%emt 0:00:01]} 34. Nd4 {[%emt 0:00:18]}
Rxc4 {[%emt 0:00:14]} 35. Bd3 {[%emt 0:00:01]} 1-0

[Event "European Rapid Championship 2021"]
[Site "Katowice"]
[Date "2021.12.18"]
[Round "2.3"]
[White "Malinowski, Damian"]
[Black "Piesik, Piotr"]
[Result "0-1"]
[ECO "A10"]
[WhiteElo "1885"]
[BlackElo "2342"]
[Annotator "ChessBase"]
[PlyCount "96"]
[EventDate "2021.12.18"]
[EventType "swiss"]
[EventCountry "POL"]
[SourceTitle "playchess.com"]
[Source "ChessBase"]
[SourceQuality "1"]
[TimeControl "900+10"]

1. c4 {[%emt 0:00:01]} g6 {[%emt 0:00:01]} 2. Nc3 {[%emt 0:00:02]} Bg7 {
[%emt 0:00:01]} 3. g3 {[%emt 0:00:02]} Nc6 {[%emt 0:00:02]} 4. Bg2 {[%emt 0:00:
03]} d6 {[%emt 0:00:01]} 5. e4 {[%emt 0:00:08]} Nd4 {[%emt 0:00:14]} 6. d3 {
[%emt 0:00:13]} c5 {[%emt 0:00:04]} 7. h3 {[%emt 0:00:58]} e6 {[%emt 0:00:08]}
8. Nge2 {[%emt 0:00:05]} Ne7 {[%emt 0:00:02]} 9. O-O {[%emt 0:00:08]} O-O {
[%emt 0:00:02]} 10. Be3 {[%emt 0:00:12]} Rb8 {[%emt 0:00:15]} 11. Qd2 {[%emt 0:
00:36]} Re8 {[%emt 0:00:12]} 12. Bh6 {[%emt 0:00:10]} Bh8 {[%emt 0:00:01]} 13.
Nxd4 {[%emt 0:00:18]} cxd4 {[%emt 0:00:13]} 14. Ne2 {[%emt 0:00:20]} b5 {
[%emt 0:00:33]} 15. b3 {[%emt 0:00:33]} d5 {[%emt 0:05:31]} 16. exd5 {[%emt 0:
02:30]} exd5 {[%emt 0:00:02]} 17. cxb5 {[%emt 0:00:43]} Rxb5 {[%emt 0:00:31]}
18. g4 {[%emt 0:01:03]} Nc6 {[%emt 0:01:41]} 19. Rac1 {[%emt 0:01:29]} Bb7 {
[%emt 0:01:59]} 20. Rfe1 {[%emt 0:01:39]} Bg7 {[%emt 0:02:21]} 21. Bxg7 {
[%emt 0:00:33]} Kxg7 {[%emt 0:00:01]} 22. Qf4 {[%emt 0:01:58]} Qf6 {[%emt 0:00:
26]} 23. Qxf6+ {[%emt 0:02:02]} Kxf6 {[%emt 0:00:01]} 24. Nf4 {[%emt 0:00:33]}
Rxe1+ {[%emt 0:00:07]} 25. Rxe1 {[%emt 0:00:01]} Nb4 {[%emt 0:00:03]} 26. a4 {
[%emt 0:00:25]} Rc5 {[%emt 0:00:07]} 27. Re8 {[%emt 0:00:29]} a5 {[%emt 0:01:
04]} 28. h4 {[%emt 0:01:21]} h6 {[%emt 0:00:14]} 29. Ne2 {[%emt 0:00:41]} Nxd3
{[%emt 0:01:14]} 30. Nxd4 {[%emt 0:00:07]} Rc1+ {[%emt 0:00:03]} 31. Kh2 {
[%emt 0:00:29]} Nxf2 {[%emt 0:00:08]} 32. Kg3 {[%emt 0:00:13]} Ne4+ {[%emt 0:
00:20]} 33. Bxe4 {[%emt 0:00:08]} dxe4 {[%emt 0:00:01]} 34. Rb8 {[%emt 0:00:12]
} Rc3+ {[%emt 0:00:24]} 35. Kf2 {[%emt 0:00:09]} Bd5 {[%emt 0:00:03]} 36. Rb5 {
[%emt 0:00:17]} Ke5 {[%emt 0:00:03]} 37. Ne2 {[%emt 0:00:11]} Rf3+ {[%emt 0:00:
17]} 38. Ke1 {[%emt 0:00:09]} Rxb3 {[%emt 0:00:04]} 39. Rxa5 {[%emt 0:00:05]}
e3 {[%emt 0:00:38]} 40. Ng3 {[%emt 0:00:21]} Kd4 {[%emt 0:00:20]} 41. Rb5 {
[%emt 0:00:07]} Ra3 {[%emt 0:00:16]} 42. Ne2+ {[%emt 0:00:09]} Kc4 {[%emt 0:00:
25]} 43. Nf4 {[%emt 0:00:09]} Bf3 {[%emt 0:00:14]} 44. Rb1 {[%emt 0:00:14]}
Rxa4 {[%emt 0:00:06]} 45. Rc1+ {[%emt 0:00:04]} Kd4 {[%emt 0:00:04]} 46. g5 {
[%emt 0:00:13]} hxg5 {[%emt 0:00:03]} 47. hxg5 {[%emt 0:00:02]} Ke4 {[%emt 0:
00:07]} 48. Nh3 {[%emt 0:00:22]} Bg4 {[%emt 0:00:12]} 0-1

[Event "European Rapid Championship 2021"]
[Site "Katowice"]
[Date "2021.12.18"]
[Round "2.4"]
[White "Savicevs, Arsenijs"]
[Black "Keinanen, Toivo"]
[Result "0-1"]
[ECO "A09"]
[WhiteElo "1881"]
[BlackElo "2341"]
[Annotator "NA"]
[PlyCount "42"]
[EventDate "2021.12.18"]
[EventType "swiss"]
[EventCountry "POL"]
[SourceTitle "playchess.com"]
[Source "ChessBase"]
[SourceQuality "1"]
[TimeControl "900+10"]

1. Nf3 {[%emt 0:00:03]} d5 {[%emt 0:00:35]} 2. c4 {[%emt 0:00:04]} d4 {[%emt 0:
01:11]} 3. b4 {[%emt 0:00:03]} Bg4 {[%emt 0:00:49]} 4. Bb2 {[%emt 0:00:30]}
Bxf3 {[%emt 0:00:08]} 5. gxf3 {[%emt 0:00:03]} e5 {[%emt 0:00:31]} 6. Rg1 {
[%emt 0:00:18]} Ne7 {[%emt 0:00:41]} 7. Bg2 {[%emt 0:00:33]} c6 {[%emt 0:01:10]
} 8. d3 {[%emt 0:00:51]} Ng6 {[%emt 0:00:47]} 9. a3 {[%emt 0:00:30]} Nd7 {
[%emt 0:01:33]} 10. Nd2 {[%emt 0:00:10]} Be7 {[%emt 0:00:23]} 11. Ne4 {[%emt 0:
00:35]} O-O {[%emt 0:00:20]} 12. Qb3 {[%emt 0:01:01]} a5 {[%emt 0:00:18]} 13.
c5 {[%emt 0:01:08]} b6 {[%emt 0:00:37]} 14. cxb6 {[%emt 0:02:22]} Nxb6 {
[%emt 0:01:07]} 15. Rc1 {[%emt 0:00:36]} axb4 {[%emt 0:00:10]} 16. axb4 {
[%emt 0:01:49]} Nd5 {[%emt 0:00:06]} 17. Nc5 {[%emt 0:01:16]} Rb8 {[%emt 0:01:
25]} 18. Rc4 {[%emt 0:00:57]} Nxb4 {[%emt 0:00:58]} 19. Rxb4 {[%emt 0:00:49]}
Qa5 {[%emt 0:00:26]} 20. Bc3 {[%emt 0:00:56]} dxc3 {[%emt 0:00:30]} 21. Rxb8 {
[%emt 0:03:04]} c2+ {[%emt 0:00:11]} 0-1

[Event "European Rapid Championship 2021"]
[Site "Katowice"]
[Date "2021.12.18"]
[Round "2.5"]
[White "Wojciechowski, Pawel"]
[Black "Papasimakopoulos, Alexandros"]
[Result "1/2-1/2"]
[ECO "A81"]
[WhiteElo "1867"]
[BlackElo "2274"]
[Annotator "ChessBase"]
[PlyCount "116"]
[EventDate "2021.12.18"]
[EventType "swiss"]
[EventCountry "POL"]
[SourceTitle "playchess.com"]
[Source "ChessBase"]
[SourceQuality "1"]
[TimeControl "900+10"]

1. d4 {[%emt 0:00:01]} f5 {[%emt 0:00:02]} 2. g3 {[%emt 0:00:17]} Nf6 {[%emt 0:
00:02]} 3. Bg2 {[%emt 0:00:01]} g6 {[%emt 0:00:02]} 4. Nf3 {[%emt 0:00:06]} Bg7
{[%emt 0:00:01]} 5. O-O {[%emt 0:00:05]} O-O {[%emt 0:00:02]} 6. b3 {[%emt 0:
00:46]} Ne4 {[%emt 0:00:04]} 7. Bb2 {[%emt 0:00:16]} c5 {[%emt 0:00:03]} 8.
Nbd2 {[%emt 0:01:06]} Nc6 {[%emt 0:00:11]} 9. Nxe4 {[%emt 0:01:06]} fxe4 {
[%emt 0:00:03]} 10. Ne5 {[%emt 0:00:31]} Nxd4 {[%emt 0:00:17]} 11. e3 {[%emt 0:
01:23]} Nf3+ {[%emt 0:01:10]} 12. Bxf3 {[%emt 0:00:06]} exf3 {[%emt 0:00:02]}
13. Qd5+ {[%emt 0:01:15]} e6 {[%emt 0:00:02]} 14. Qd6 {[%emt 0:00:25]} Rf5 {
[%emt 0:04:15]} 15. Rad1 {[%emt 0:00:49]} Qg5 {[%emt 0:02:25]} 16. Nc4 {
[%emt 0:01:29]} Bxb2 {[%emt 0:00:05]} 17. Nxb2 {[%emt 0:00:02]} Qg4 {[%emt 0:
00:08]} 18. Nd3 {[%emt 0:00:39]} Qh3 {[%emt 0:01:04]} 19. Ne1 {[%emt 0:00:05]}
b6 {[%emt 0:00:26]} 20. e4 {[%emt 0:00:55]} Rf7 {[%emt 0:00:02]} 21. Rd3 {
[%emt 0:00:54]} Ba6 {[%emt 0:00:02]} 22. c4 {[%emt 0:00:03]} Bb7 {[%emt 0:00:
19]} 23. Rxf3 {[%emt 0:01:48]} Rxf3 {[%emt 0:00:02]} 24. Nxf3 {[%emt 0:00:01]}
Bxe4 {[%emt 0:00:02]} 25. Qf4 {[%emt 0:00:34]} d5 {[%emt 0:00:47]} 26. Qf7+ {
[%emt 0:01:03]} Kxf7 {[%emt 0:00:01]} 27. Ng5+ {[%emt 0:00:01]} Kf6 {[%emt 0:
00:17]} 28. Nxh3 {[%emt 0:00:02]} dxc4 {[%emt 0:00:02]} 29. bxc4 {[%emt 0:00:
17]} Bd3 {[%emt 0:00:02]} 30. Rc1 {[%emt 0:00:04]} e5 {[%emt 0:00:01]} 31. f4 {
[%emt 0:01:07]} e4 {[%emt 0:00:26]} 32. Nf2 {[%emt 0:00:21]} Rd8 {[%emt 0:00:
03]} 33. Ng4+ {[%emt 0:00:11]} Ke6 {[%emt 0:00:27]} 34. Kf2 {[%emt 0:00:15]} h5
{[%emt 0:01:14]} 35. Ne5 {[%emt 0:00:32]} g5 {[%emt 0:00:02]} 36. Ke3 {[%emt 0:
00:05]} gxf4+ {[%emt 0:00:01]} 37. gxf4 {[%emt 0:00:03]} Rg8 {[%emt 0:00:03]}
38. Nxd3 {[%emt 0:01:31]} exd3 {[%emt 0:00:01]} 39. Kxd3 {[%emt 0:00:11]} Rg2 {
[%emt 0:00:23]} 40. Re1+ {[%emt 0:00:02]} Kf6 {[%emt 0:00:01]} 41. Re2 {
[%emt 0:00:38]} Rg4 {[%emt 0:00:30]} 42. Ke4 {[%emt 0:00:15]} Rg1 {[%emt 0:00:
02]} 43. Rd2 {[%emt 0:00:30]} Rf1 {[%emt 0:00:09]} 44. Rd6+ {[%emt 0:00:07]}
Ke7 {[%emt 0:00:05]} 45. Rh6 {[%emt 0:00:12]} Rc1 {[%emt 0:00:06]} 46. Rxh5 {
[%emt 0:00:19]} Rxc4+ {[%emt 0:00:03]} 47. Ke5 {[%emt 0:00:04]} Ra4 {[%emt 0:
00:14]} 48. Rh7+ {[%emt 0:00:15]} Ke8 {[%emt 0:00:03]} 49. Ke6 {[%emt 0:00:08]}
Kf8 {[%emt 0:00:21]} 50. f5 {[%emt 0:00:09]} Rxa2 {[%emt 0:00:03]} 51. f6 {
[%emt 0:00:16]} Re2+ {[%emt 0:00:02]} 52. Kf5 {[%emt 0:00:01]} c4 {[%emt 0:00:
08]} 53. Rxa7 {[%emt 0:00:10]} Rxh2 {[%emt 0:00:31]} 54. Ra8+ {[%emt 0:00:06]}
Kf7 {[%emt 0:00:02]} 55. Ra7+ {[%emt 0:00:01]} Ke8 {[%emt 0:00:01]} 56. Ra8+ {
[%emt 0:00:02]} Kd7 {[%emt 0:02:01]} 57. f7 {[%emt 0:00:27]} Rf2+ {[%emt 0:00:
02]} 58. Kg6 {[%emt 0:00:03]} Kd6 {[%emt 0:01:28]} 1/2-1/2